bitfinex-derivatives/quotes_BTCF0:USTF0_20260131
["timestamp","ask_amount","ask_price","bid_price","bid_amount"]
[1769840863389,0.00922957,83679.0,83666.0,9.671e-05]
[1769840869489,0.00922957,83675.0,83653.0,0.011973]
[1769840869690,0.21217813,83670.0,83653.0,0.011973]
[1769840871998,0.00922957,83669.0,83653.0,0.011973]
[1769840873306,0.00376775,83683.0,83671.0,0.011971]
[1769840873490,0.51810856,83690.0,83671.0,0.011971]
[1769840873797,0.31516,83690.0,83671.0,0.011971]
[1769840873999,0.31516,83690.0,83664.0,0.10768]
[1769840874000,0.31516,83690.0,83673.0,0.01197]
[1769840874397,0.011966,83708.0,83673.0,0.01197]
[1769840874398,0.0001281,83689.0,83673.0,0.01197]
[1769840874804,0.4308,83718.0,83673.0,0.01197]
[1769840874805,0.011966,83708.0,83673.0,0.021415]
[1769840875003,0.54595708,83707.0,83673.0,0.021415]
[1769840875203,0.12311708,83706.0,83673.0,0.021415]
[1769840875503,0.00922957,83705.0,83675.0,0.01197]
[1769840876399,0.00922957,83705.0,83678.0,0.01197]
[1769840876591,0.00922957,83705.0,83673.0,0.009445]
[1769840876795,0.00922957,83705.0,83675.0,0.01197]
[1769840877702,0.00922957,83705.0,83675.0,0.021415]
[1769840878092,0.00922957,83705.0,83676.0,0.10768]
[1769840878996,0.011966,83704.0,83676.0,0.10768]
[1769840879200,0.00922957,83703.0,83677.0,0.009445]
[1769840879392,0.00922957,83703.0,83676.0,0.10768]
[1769840879592,0.00922957,83701.0,83676.0,0.10768]
[1769840881599,0.00922957,83701.0,83676.0,0.117125]
[1769840881801,0.00922957,83701.0,83677.0,0.009445]
[1769840884300,0.00922957,83701.0,83676.0,0.11965]
[1769840884603,0.00922957,83701.0,83677.0,0.009445]
[1769840886099,0.23619846,83728.0,83685.0,0.009445]
[1769840886408,0.00922957,83726.0,83698.0,0.011967]
[1769840886593,0.00922957,83726.0,83699.0,0.009445]
[1769840887593,0.00922957,83726.0,83703.0,0.03162938]
[1769840888300,0.00922957,83726.0,83704.0,0.011966]
[1769840888500,0.10768,83727.0,83705.0,0.03162938]
[1769840888901,0.10768,83727.0,83709.0,0.03162938]
[1769840889798,0.03030505,83726.0,83708.0,0.011965]
[1769840890105,0.03030505,83726.0,83708.0,0.10768]
[1769840890302,0.03030505,83726.0,83708.0,0.13930938]
[1769840890601,0.10768,83727.0,83709.0,0.03162938]
[1769840891012,0.13798505,83727.0,83709.0,0.03162938]
[1769840892906,0.03030505,83727.0,83709.0,0.03162938]
[1769840894104,0.03030505,83727.0,83708.0,0.10768]
[1769840894313,0.03030505,83727.0,83708.0,0.1736871]
[1769840895209,0.03030505,83727.0,83708.0,0.20531648]
[1769840895913,0.03030505,83727.0,83709.0,0.03162938]
[1769840901722,0.10764,83730.0,83709.0,0.03162938]
[1769840902023,0.10764,83730.0,83714.0,0.03162938]
[1769840904028,0.03030505,83729.0,83710.0,0.011965]
[1769840904429,0.03030505,83729.0,83710.0,0.04359438]
[1769840904624,0.03030505,83729.0,83711.0,0.03162938]
[1769840904826,0.03030505,83729.0,83696.0,0.23774685]
[1769840905028,0.03030505,83721.0,83683.0,0.011969]
[1769840905227,0.03030505,83719.0,83683.0,0.06573066]
[1769840905529,0.011965,83714.0,83682.0,0.10764]
[1769840905736,0.03030505,83713.0,83682.0,0.10764]
[1769840907628,0.03030505,83711.0,83674.0,0.03162938]
[1769840907936,0.03030505,83709.0,83674.0,0.13926938]
[1769840908235,0.03030505,83708.0,83674.0,0.13926938]
[1769840910139,0.03030505,83708.0,83675.0,0.03162938]
[1769840912540,0.03030505,83708.0,83676.0,0.03162938]
[1769840913037,0.03030505,83706.0,83673.0,0.06565295]
[1769840913343,0.03030505,83702.0,83671.0,0.03162938]
[1769840913641,0.03030505,83700.0,83671.0,0.03162938]
[1769840913831,0.03030505,83698.0,83671.0,0.09736947]
[1769840914140,0.03030505,83698.0,83672.0,0.03162938]
[1769840916138,0.011966,83704.0,83671.0,0.06574009]
[1769840916139,0.03030505,83710.0,83682.0,0.011969]
[1769840916334,0.34538505,83710.0,83684.0,0.03162938]
[1769840916534,0.34538505,83710.0,83686.0,0.04816726]
[1769840916736,0.04483298,83709.0,83686.0,0.04816726]
[1769840920238,0.31508,83710.0,83688.0,0.04835096]
[1769840921844,0.10768,83711.0,83688.0,0.04835096]
[1769840922140,0.04621215,83721.0,83694.0,0.04835096]
[1769840922341,0.10768,83722.0,83702.0,0.04835096]
[1769840923735,0.10768,83722.0,83704.0,0.04835096]
[1769840923936,0.10768,83722.0,83706.0,0.04835096]
[1769840925038,0.10768,83722.0,83708.0,0.04835096]
[1769840925645,0.04621215,83731.0,83708.0,0.06031596]
[1769840928345,0.04621215,83731.0,83707.0,0.10764]
[1769840928346,0.04621215,83731.0,83711.0,0.06031596]
[1769840928847,0.42272,83733.0,83711.0,0.06031596]
[1769840931351,0.04621215,83737.0,83711.0,0.06031596]
[1769840931747,0.04621215,83737.0,83707.0,0.011966]
[1769840931950,0.04621215,83734.0,83699.0,0.04835096]
[1769840932151,0.04621215,83732.0,83700.0,0.10764]
[1769840932746,0.04621215,83732.0,83700.0,0.15599096]
[1769840933149,0.04621215,83732.0,83701.0,0.04835096]
[1769840933346,0.04621215,83732.0,83701.0,0.06031696]
[1769840934751,0.04621215,83732.0,83701.0,0.04835096]
[1769840935151,0.04621215,83732.0,83700.0,0.10764]
[1769840935351,0.10764,83733.0,83700.0,0.10764]
[1769840935352,0.04621215,83730.0,83700.0,0.10764]
[1769840935552,0.04621215,83728.0,83700.0,0.10764]
[1769840939358,0.011963,83727.0,83700.0,0.10764]
[1769840939545,0.04621215,83726.0,83700.0,0.10764]
[1769840941861,0.04621215,83726.0,83694.0,0.011967]
[1769840942857,0.04621215,83724.0,83694.0,0.011967]
[1769840943164,0.04621215,83722.0,83694.0,0.011967]
[1769840943363,0.04621215,83720.0,83694.0,0.011967]
[1769840943861,0.04621215,83709.0,83684.0,0.04835096]
[1769840944159,0.04621215,83706.0,83679.0,0.04835096]
[1769840944355,0.04621215,83704.0,83679.0,0.04835096]
[1769840944555,0.04621215,83704.0,83679.0,0.11451918]
[1769840945961,0.04621215,83704.0,83676.0,0.11961]
[1769840945962,0.04621215,83704.0,83676.0,0.10764]
[1769840946269,0.04621215,83704.0,83677.0,0.04835096]
[1769840947351,0.05476414,83703.0,83677.0,0.04835096]
[1769840947867,0.05476414,83703.0,83674.0,0.06622483]
[1769840948160,0.05476414,83703.0,83677.0,0.05550386]
[1769840948962,0.05476414,83699.0,83670.0,0.10764]
[1769840949160,0.05476414,83697.0,83670.0,0.17359153]
[1769840949364,0.05476414,83697.0,83670.0,0.10764]
[1769840950077,0.05476414,83695.0,83670.0,0.10764]
[1769840951561,0.05476414,83695.0,83670.0,0.16314386]
[1769840952060,0.05476414,83695.0,83670.0,0.10764]
[1769840952256,0.05476414,83695.0,83666.0,0.05550386]
[1769840952966,0.05476414,83693.0,83666.0,0.05550386]
[1769840953166,0.05476414,83691.0,83666.0,0.05550386]
[1769840953363,0.05476414,83691.0,83662.0,0.011972]
[1769840953567,0.05476414,83691.0,83664.0,0.011972]
[1769840953766,0.05476414,83691.0,83664.0,0.06747586]
[1769840954163,0.05476414,83691.0,83671.0,0.05550386]
[1769840954472,0.31508,83690.0,83671.0,0.05550386]
[1769840954672,0.42276,83690.0,83671.0,0.05550386]
[1769840955769,0.42276,83689.0,83671.0,0.05550386]
[1769840958778,0.42276,83689.0,83671.0,0.06747486]
[1769840960276,0.42276,83689.0,83671.0,0.05550386]
[1769840960277,0.05476414,83688.0,83671.0,0.05550386]
[1769840961581,0.05476414,83688.0,83668.0,0.011971]
[1769840961968,0.05476414,83688.0,83668.0,0.06747486]
[1769840962780,0.05476414,83688.0,83670.0,0.06747486]
[1769840963076,0.05476414,83688.0,83671.0,0.05550386]
[1769840965178,0.42276,83689.0,83671.0,0.05550386]
[1769840966879,0.42276,83689.0,83673.0,0.05550386]
[1769840967281,0.10768,83694.0,83680.0,0.05550386]
[1769840967473,0.10768,83694.0,83680.0,0.06747286]
[1769840968382,0.10768,83694.0,83683.0,0.05550386]
[1769840968579,0.10768,83694.0,83685.0,0.05550386]
[1769840969680,0.4228,83702.0,83685.0,0.05550386]
[1769840971081,0.4228,83702.0,83675.0,0.23803591]
[1769840971082,0.05476414,83701.0,83675.0,0.23803591]
[1769840971275,0.05476414,83701.0,83674.0,0.23803591]
[1769840971475,0.05476414,83701.0,83675.0,0.23803591]
[1769840971875,0.05476414,83701.0,83676.0,0.05550386]
[1769840972283,0.05476414,83701.0,83677.0,0.05550386]
[1769840972976,0.05476414,83701.0,83680.0,0.011969]
[1769840973774,0.05476414,83701.0,83680.0,0.21479577]
[1769840973975,0.4228,83702.0,83683.0,0.06747286]
[1769840974182,0.4228,83702.0,83683.0,0.05550386]
[1769840975275,0.4228,83702.0,83673.0,0.06701717]
[1769840975276,0.05476414,83699.0,83673.0,0.23803591]
[1769840975480,0.05476414,83701.0,83677.0,0.05550386]
[1769840975681,0.05476414,83701.0,83681.0,0.05550386]
[1769840982478,0.10768,83702.0,83689.0,0.06274911]
[1769840983987,0.10768,83702.0,83690.0,0.06274911]
[1769840985183,0.10768,83702.0,83676.0,0.06596259]
[1769840985184,0.06243921,83701.0,83677.0,0.23803591]
[1769840985379,0.06243921,83701.0,83676.0,0.06596259]
[1769840985577,0.06243921,83701.0,83675.0,0.30078502]
[1769840985781,0.06243921,83701.0,83676.0,0.30078502]
[1769840986284,0.06243921,83701.0,83677.0,0.07471911]
[1769840987678,0.06243921,83701.0,83679.0,0.01197]
[1769840989987,0.06243921,83701.0,83680.0,0.20282677]
[1769840990491,0.06243921,83701.0,83680.0,0.26557588]
[1769840990685,0.06243921,83701.0,83681.0,0.07471811]
[1769840994289,0.06243921,83701.0,83681.0,0.31275402]
[1769840995490,0.06243921,83701.0,83683.0,0.011969]
[1769840995792,0.06243921,83701.0,83685.0,0.011969]
[1769840997481,0.06243921,83701.0,83685.0,0.07471811]
[1769840999189,0.06243921,83701.0,83685.0,0.011969]
[1769840999389,0.06243921,83701.0,83682.0,0.30078502]
[1769841000093,0.06243921,83701.0,83686.0,0.011969]
[1769841001203,0.06243921,83701.0,83686.0,0.07471811]
[1769841001388,0.06519055,83702.0,83690.0,0.06274911]
[1769841001586,0.10768,83725.0,83694.0,0.06274911]
[1769841001892,0.06519055,83722.0,83699.0,0.06274911]
[1769841002487,0.06243921,83721.0,83689.0,0.07471711]
[1769841002692,0.06243921,83721.0,83689.0,0.06274911]
[1769841003088,0.06243921,83721.0,83689.0,0.07471711]
[1769841003297,0.53301764,83758.0,83693.0,0.06274911]
[1769841003495,0.06243921,83744.0,83716.0,0.06274911]
[1769841003689,0.06243921,83742.0,83716.0,0.06274911]
[1769841003884,0.06243921,83740.0,83716.0,0.06274911]
[1769841007598,0.06519055,83739.0,83716.0,0.06274911]
[1769841007902,0.06519055,83739.0,83719.0,0.06377608]
[1769841008199,0.10768,83741.0,83719.0,0.06377608]
[1769841008400,0.06519055,83740.0,83719.0,0.06377608]
[1769841008597,0.06749752,83752.0,83721.0,0.06377608]
[1769841008802,0.06749752,83752.0,83723.0,0.06377608]
[1769841008996,0.06749752,83750.0,83725.0,0.06377608]
[1769841009506,0.06749752,83750.0,83724.0,0.10764]
[1769841009804,0.06749752,83748.0,83724.0,0.10764]
[1769841010403,0.06749752,83746.0,83724.0,0.10764]
[1769841012996,0.06749752,83746.0,83724.0,0.17141608]
[1769841013199,0.06519055,83747.0,83732.0,0.06377608]
[1769841013792,0.31504,83749.0,83732.0,0.06377608]
[1769841013997,0.06519055,83748.0,83732.0,0.06377608]
[1769841014598,0.10764,83754.0,83732.0,0.06377608]
[1769841015694,0.10764,83764.0,83736.0,0.06377608]
[1769841015900,0.10764,83764.0,83725.0,0.0672773]
[1769841015901,0.10764,83764.0,83738.0,0.06377608]
[1769841016103,0.10764,83764.0,83740.0,0.06377608]
[1769841020209,0.10764,83764.0,83741.0,0.06377608]
[1769841021313,0.10764,83764.0,83741.0,0.07573708]
[1769841023113,0.10764,83764.0,83745.0,0.06377608]
[1769841023412,0.10764,83764.0,83747.0,0.06377608]
[1769841023804,0.06749752,83777.0,83752.0,0.06377608]
[1769841024014,0.43048,83797.0,83757.0,0.06377608]
[1769841024015,0.31492,83779.0,83757.0,0.06377608]
[1769841024410,0.06519055,83778.0,83757.0,0.06377608]
[1769841024917,0.06749752,83788.0,83765.0,0.06377608]
[1769841025213,0.1076,83791.0,83752.0,0.1076]
[1769841025214,0.06749752,83786.0,83763.0,0.1076]
[1769841025409,0.06749752,83786.0,83756.0,0.011959]
[1769841025410,0.06749752,83784.0,83757.0,0.1076]
[1769841025915,0.06749752,83782.0,83758.0,0.06377608]
[1769841026115,0.49001752,83781.0,83758.0,0.06377608]
[1769841026416,0.06519055,83780.0,83758.0,0.06377608]
[1769841029222,0.06519055,83780.0,83760.0,0.06377608]
[1769841030414,0.06519055,83780.0,83764.0,0.06377608]
[1769841031421,0.06519055,83780.0,83765.0,0.011957]
[1769841035325,0.06519055,83780.0,83765.0,0.07573308]
[1769841037236,0.42252,83781.0,83767.0,0.06555243]
[1769841037428,0.06728234,83800.0,83775.0,0.06555243]
[1769841037734,0.06728234,83798.0,83775.0,0.06555243]
[1769841037935,0.06728234,83796.0,83775.0,0.06555243]
[1769841038734,0.06519055,83795.0,83775.0,0.06555243]
[1769841038921,0.06519055,83795.0,83778.0,0.07925603]
[1769841042229,0.06519055,83795.0,83778.0,0.06730103]
[1769841044030,0.06519055,83795.0,83782.0,0.06730103]
[1769841045040,0.06519055,83795.0,83783.0,0.07925603]
[1769841045243,0.10756,83801.0,83783.0,0.07925603]
[1769841045536,0.06519055,83800.0,83786.0,0.06730103]
[1769841045727,0.10756,83801.0,83788.0,0.06730103]
[1769841048634,0.06510242,83812.0,83788.0,0.06730103]
[1769841048837,0.06510242,83809.0,83788.0,0.06730103]
[1769841049032,0.06510242,83809.0,83791.0,0.07925503]
[1769841049232,0.06519055,83808.0,83791.0,0.07925503]
[1769841049530,0.06519055,83808.0,83791.0,0.06730103]
[1769841049932,0.31476,83814.0,83796.0,0.06730103]
[1769841050134,0.06510242,83806.0,83780.0,0.23904032]
[1769841050335,0.06510242,83806.0,83781.0,0.10756]
[1769841050537,0.06510242,83804.0,83781.0,0.10756]
[1769841050730,0.06510242,83803.0,83781.0,0.10756]
[1769841050939,0.06510242,83802.0,83781.0,0.10756]
[1769841052140,0.06510242,83802.0,83771.0,0.06730103]
[1769841052342,0.06510242,83802.0,83771.0,0.13250906]
[1769841052647,0.06519055,83801.0,83771.0,0.13250906]
[1769841052835,0.06510242,83800.0,83771.0,0.13250906]
[1769841053937,0.06510242,83800.0,83771.0,0.06520803]
[1769841054136,0.06510242,83800.0,83768.0,0.23904032]
[1769841054334,0.06510242,83800.0,83767.0,0.10756]
[1769841054537,0.06510242,83800.0,83767.0,0.17338912]
[1769841055039,0.06510242,83800.0,83768.0,0.011957]
[1769841055540,0.06510242,83800.0,83768.0,0.07925803]
[1769841055744,0.06510242,83800.0,83771.0,0.011956]
[1769841055944,0.06510242,83800.0,83774.0,0.011956]
[1769841056642,0.06510242,83800.0,83764.0,0.23904032]
[1769841056847,0.06510242,83795.0,83762.0,0.011958]
[1769841057047,0.06510242,83793.0,83762.0,0.011958]
[1769841057535,0.06519055,83792.0,83762.0,0.011958]
[1769841057740,0.06510242,83790.0,83762.0,0.011958]
[1769841058245,0.06519055,83789.0,83762.0,0.011958]
[1769841058544,0.06510242,83788.0,83762.0,0.011958]
[1769841059341,0.06510242,83788.0,83760.0,0.06444732]
[1769841059647,0.06510242,83788.0,83761.0,0.011958]
[1769841061235,0.06510242,83788.0,83759.0,0.06480894]
[1769841061440,0.06519055,83789.0,83755.0,0.10756]
[1769841061441,0.06510242,83779.0,83755.0,0.34660032]
[1769841061640,0.06510242,83779.0,83755.0,0.41125532]
[1769841061641,0.06510242,83777.0,83755.0,0.41125532]
[1769841062147,0.06510242,83777.0,83755.0,0.39685532]
[1769841062542,0.06510242,83775.0,83750.0,0.23904032]
[1769841062844,0.06510242,83775.0,83750.0,0.0643235]
[1769841063052,0.06510242,83775.0,83748.0,0.0001327]
[1769841063244,0.06510242,83775.0,83748.0,0.06685802]
[1769841063640,0.07705842,83775.0,83748.0,0.0001327]
[1769841063843,0.06519055,83776.0,83748.0,0.0001327]
[1769841063844,0.06510242,83770.0,83748.0,0.0001327]
[1769841065256,0.06510242,83768.0,83732.0,0.23904032]
[1769841065555,0.011956,83773.0,83734.0,0.06730103]
[1769841065556,0.06510242,83766.0,83734.0,0.06730103]
[1769841065949,0.06510242,83764.0,83734.0,0.06730103]
[1769841066349,0.06519055,83765.0,83734.0,0.06730103]
[1769841066350,0.06510242,83762.0,83734.0,0.06730103]
[1769841066857,0.05984722,83760.0,83734.0,0.06730103]
[1769841072052,0.05984722,83760.0,83728.0,0.0611839]
[1769841072258,0.05984722,83756.0,83724.0,0.06541565]
[1769841072453,0.05984722,83754.0,83723.0,0.0611839]
[1769841072757,0.05984722,83752.0,83723.0,0.0611839]
[1769841072957,0.05984722,83752.0,83723.0,0.12592282]
[1769841073152,0.05984722,83750.0,83724.0,0.0611839]
[1769841075056,0.05984722,83750.0,83722.0,0.06650755]
[1769841075245,0.05984722,83750.0,83720.0,0.011964]
[1769841075450,0.05984722,83750.0,83723.0,0.011963]
[1769841076660,0.05984722,83750.0,83732.0,0.011962]
[1769841076858,0.05984722,83750.0,83728.0,0.0731469]
[1769841078851,0.05984722,83750.0,83728.0,0.0611839]
[1769841079659,0.1076,83749.0,83730.0,0.0611839]
[1769841079854,0.06519055,83748.0,83730.0,0.0611839]
[1769841082463,0.1076,83751.0,83730.0,0.0731459]
[1769841082663,0.06519055,83750.0,83730.0,0.0731459]
[1769841083558,0.06519055,83750.0,83731.0,0.0611839]
[1769841084757,0.06519055,83750.0,83733.0,0.0611839]
[1769841085572,0.06519055,83750.0,83735.0,0.0611839]
[1769841091378,0.05984722,83749.0,83731.0,0.119562]
[1769841091579,0.05984722,83749.0,83731.0,0.1076]
[1769841091880,0.05984722,83749.0,83731.0,0.17362845]
[1769841094181,0.05984722,83749.0,83731.0,0.1076]
[1769841094385,0.05984722,83749.0,83732.0,0.0611839]
[1769841095268,0.06519055,83750.0,83732.0,0.0731459]
[1769841095774,0.06519055,83750.0,83736.0,0.0611839]
[1769841099194,0.05916669,83762.0,83743.0,0.07137945]
[1769841099490,0.42248,83761.0,83743.0,0.07137945]
[1769841101686,0.05916669,83762.0,83746.0,0.07137945]
[1769841101890,0.42248,83761.0,83746.0,0.07137945]
[1769841102789,0.05916669,83762.0,83746.0,0.07137945]
[1769841103290,0.42248,83761.0,83746.0,0.07137945]
[1769841105995,0.48164669,83761.0,83749.0,0.17913265]
[1769841106385,0.42248,83761.0,83750.0,0.17913265]
[1769841106586,0.42248,83761.0,83750.0,0.2385521]
[1769841107182,0.42248,83761.0,83750.0,0.17913265]
[1769841111998,0.48164669,83761.0,83750.0,0.17913265]
[1769841112299,0.05916669,83760.0,83750.0,0.17913265]
[1769841113194,0.41822771,83761.0,83751.0,0.05941945]
[1769841113401,0.41822771,83761.0,83750.0,0.38174735]
[1769841113699,0.41822771,83761.0,83751.0,0.17913265]
[1769841114091,0.4773944,83761.0,83751.0,0.17913265]
[1769841114297,0.05916669,83760.0,83751.0,0.17913265]
[1769841114497,0.05916669,83760.0,83750.0,0.17913265]
[1769841114800,0.05916669,83760.0,83748.0,0.17913265]
[1769841115001,0.05916669,83760.0,83749.0,0.17913265]
[1769841116098,0.05916669,83759.0,83737.0,0.23904032]
[1769841116298,0.05916669,83757.0,83729.0,0.53672909]
[1769841116493,0.05916669,83757.0,83726.0,0.11210636]
[1769841116695,0.05916669,83757.0,83726.0,0.17628386]
[1769841117301,0.05916669,83757.0,83726.0,0.18824686]
[1769841118302,0.05916669,83749.0,83722.0,0.23904032]
[1769841118505,0.05916669,83747.0,83717.0,0.07904285]
[1769841119009,0.05916669,83745.0,83717.0,0.011964]
[1769841120807,0.05916669,83745.0,83716.0,0.17487057]
[1769841121003,0.05916669,83745.0,83716.0,0.28697693]
[1769841123406,0.31488,83744.0,83721.0,0.05941945]
[1769841123709,0.05916669,83743.0,83721.0,0.05941945]
[1769841124405,0.05916669,83743.0,83722.0,0.11210636]
[1769841124600,0.00012508,83746.0,83722.0,0.11210636]
[1769841124601,0.42248,83742.0,83723.0,0.05941945]
[1769841125412,0.42248,83742.0,83725.0,0.05941945]
[1769841125711,0.42252,83741.0,83725.0,0.05941945]
[1769841125912,0.42252,83741.0,83726.0,0.05941945]
[1769841126299,0.42252,83741.0,83725.0,0.11210636]
[1769841126300,0.05916669,83740.0,83725.0,0.11210636]
[1769841126906,0.05916669,83740.0,83716.0,0.12669002]
[1769841127214,0.05916669,83740.0,83717.0,0.11210636]
[1769841140623,0.05916669,83740.0,83717.0,0.175782]
[1769841142519,0.05916669,83740.0,83717.0,0.06367564]
[1769841143325,0.06542549,83730.0,83702.0,0.23849316]
[1769841143629,0.06542549,83728.0,83708.0,0.11210636]
[1769841144226,0.06542549,83728.0,83703.0,0.06367564]
[1769841144424,0.06542549,83728.0,83708.0,0.06367564]
[1769841144721,0.41874241,83729.0,83710.0,0.06367564]
[1769841144921,0.41874241,83729.0,83707.0,0.11223735]
[1769841144922,0.41874241,83729.0,83712.0,0.06367564]
[1769841145326,0.41874241,83729.0,83714.0,0.06367564]
[1769841145822,0.00013207,83729.0,83714.0,0.06367564]
[1769841146022,0.4226,83728.0,83714.0,0.06367564]
[1769841146320,0.40641652,83732.0,83715.0,0.3021688]
[1769841146526,0.01196,83749.0,83715.0,0.3021688]
[1769841146527,0.31496,83733.0,83716.0,0.06367564]
[1769841146726,0.31496,83733.0,83717.0,0.06367564]
[1769841147118,0.31496,83733.0,83717.0,0.3021688]
[1769841147319,0.31496,83733.0,83718.0,0.06367564]
[1769841149624,0.10764,83734.0,83720.0,0.06367564]
[1769841149824,0.03298511,83734.0,83722.0,0.06367564]
[1769841150326,0.03298511,83734.0,83724.0,0.06367564]
[1769841151220,0.31496,83738.0,83724.0,0.06367564]
[1769841151427,0.10764,83744.0,83724.0,0.06367564]
[1769841151428,0.10764,83744.0,83724.0,0.07563864]
[1769841151622,0.10764,83744.0,83727.0,0.06367564]
[1769841151916,0.31496,83755.0,83731.0,0.06367564]
[1769841152117,0.31496,83755.0,83732.0,0.06367564]
[1769841152317,0.31496,83755.0,83734.0,0.06367564]
[1769841152829,0.31496,83755.0,83736.0,0.06367564]
[1769841154423,0.06542549,83754.0,83736.0,0.06367564]
[1769841155326,0.06542549,83754.0,83737.0,0.06367564]
[1769841157126,0.06542549,83754.0,83727.0,0.37547579]
[1769841157327,0.06542549,83754.0,83728.0,0.18204269]
[1769841157527,0.06542549,83754.0,83729.0,0.06993633]
[1769841170041,0.06542549,83754.0,83731.0,0.07693796]
[1769841170526,0.06542549,83754.0,83732.0,0.11210636]
[1769841170730,0.06542549,83754.0,83732.0,0.18904432]
[1769841172439,0.06542549,83754.0,83733.0,0.07693796]
[1769841172841,0.06542549,83754.0,83733.0,0.18904432]
[1769841174738,0.06542549,83754.0,83734.0,0.11210636]
[1769841177144,0.06542549,83754.0,83735.0,0.07693796]
[1769841181841,0.0719984,83752.0,83735.0,0.07693796]
[1769841184351,0.0719984,83752.0,83734.0,0.11210636]
[1769841184550,0.0719984,83752.0,83735.0,0.07693796]
[1769841186647,0.1076,83751.0,83735.0,0.07693796]
[1769841188553,0.18026886,83751.0,83735.0,0.07693796]
[1769841189444,0.1076,83751.0,83735.0,0.07693796]
[1769841191752,0.1076,83763.0,83741.0,0.0770002]
[1769841192055,0.42252,83763.0,83741.0,0.0770002]
[1769841192854,0.49518886,83763.0,83741.0,0.0770002]
[1769841193755,0.42252,83763.0,83743.0,0.0770002]
[1769841196161,0.42252,83763.0,83751.0,0.0770002]
[1769841196647,0.42252,83763.0,83753.0,0.0770002]
[1769841202964,0.42252,83763.0,83754.0,0.11210636]
[1769841204465,0.42252,83763.0,83755.0,0.0770002]
[1769841207164,0.42252,83763.0,83754.0,0.11210636]
[1769841209066,0.42252,83763.0,83754.0,0.18910656]
[1769841209768,0.42252,83763.0,83754.0,0.11210636]
[1769841210364,0.07266886,83780.0,83755.0,0.0770002]
[1769841210570,0.07266886,83796.0,83769.0,0.0770002]
[1769841210768,0.07266886,83794.0,83769.0,0.0770002]
[1769841210969,0.07266886,83792.0,83770.0,0.11210636]
[1769841211169,0.07266886,83792.0,83765.0,0.0770002]
[1769841212770,0.07266886,83792.0,83766.0,0.011957]
[1769841214170,0.07266886,83792.0,83769.0,0.011957]
[1769841215472,0.07266886,83789.0,83766.0,0.11210636]
[1769841216164,0.07266886,83789.0,83767.0,0.011957]
[1769841216773,0.07266886,83789.0,83766.0,0.11210636]
[1769841217873,0.07266886,83789.0,83766.0,0.12406336]
[1769841220774,0.07266886,83789.0,83768.0,0.011957]
[1769841222077,0.07266886,83789.0,83769.0,0.11210636]
[1769841223576,0.07266886,83789.0,83770.0,0.011957]
[1769841230084,0.07612372,83787.0,83770.0,0.011957]
[1769841232785,0.07612372,83787.0,83765.0,0.08648658]
[1769841233087,0.07612372,83787.0,83768.0,0.011957]
[1769841238087,0.07612372,83787.0,83769.0,0.11210636]
[1769841242291,0.07612372,83787.0,83770.0,0.011957]
[1769841244988,0.10756,83788.0,83773.0,0.07452958]
[1769841245486,0.07612372,83790.0,83773.0,0.07452958]
[1769841245688,0.07612372,83790.0,83774.0,0.11210636]
[1769841245888,0.07612372,83788.0,83774.0,0.11210636]
[1769841247075,0.07612372,83788.0,83774.0,0.18612416]
[1769841247275,0.10756,83789.0,83774.0,0.18612416]
[1769841247678,0.07526433,83788.0,83774.0,0.18612416]
[1769841247878,0.07526433,83788.0,83774.0,0.11210636]
[1769841250483,0.3148,83787.0,83774.0,0.11210636]
[1769841251095,0.39006433,83787.0,83774.0,0.11210636]
[1769841256385,0.07526433,83786.0,83774.0,0.11210636]
[1769841262697,0.07526433,83786.0,83775.0,0.11210636]
[1769841262894,0.07526433,83786.0,83770.0,0.11210636]
[1769841265902,0.07526433,83786.0,83770.0,0.10814328]
[1769841267696,0.07526433,83786.0,83760.0,0.17939878]
[1769841267900,0.07526433,83781.0,83757.0,0.10814328]
[1769841268490,0.07526433,83774.0,83750.0,0.011959]
[1769841268689,0.07526433,83772.0,83751.0,0.10814328]
[1769841291435,0.07526433,83772.0,83751.0,0.17994852]
[1769841292529,0.07526433,83772.0,83751.0,0.07180524]
[1769841292827,0.07526433,83772.0,83752.0,0.10814328]
[1769841297332,0.07725741,83770.0,83752.0,0.10814328]
[1769841298133,0.07725741,83768.0,83752.0,0.10814328]
[1769841300333,0.07725741,83768.0,83752.0,0.10914328]
[1769841300827,0.1076,83769.0,83753.0,0.07180524]
[1769841301023,0.07725741,83768.0,83753.0,0.07180524]
[1769841302734,0.1076,83769.0,83753.0,0.07180524]
[1769841302939,0.1076,83769.0,83753.0,0.08476424]
[1769841303139,0.1076,83769.0,83759.0,0.07180524]
[1769841303435,0.1076,83769.0,83761.0,0.07180524]
[1769841303630,0.07725741,83776.0,83761.0,0.07180524]
[1769841303631,0.31488,83768.0,83761.0,0.07180524]
[1769841303936,0.42248,83768.0,83762.0,0.10814328]
[1769841305135,0.42248,83768.0,83763.0,0.07180524]
[1769841307031,0.42248,83767.0,83763.0,0.07180524]
[1769841307238,0.42248,83767.0,83763.0,0.07280524]
[1769841308040,0.42248,83767.0,83763.0,0.07180524]
[1769841308238,0.42248,83767.0,83763.0,0.07280524]
[1769841315049,0.42248,83767.0,83763.0,0.001]
[1769841316262,0.42248,83767.0,83762.0,0.10814328]
[1769841316547,0.42248,83767.0,83763.0,0.001]
[1769841317351,0.42248,83767.0,83762.0,0.10914328]
[1769841319353,0.42248,83767.0,83763.0,0.001]
[1769841320249,0.19393805,83767.0,83763.0,0.001]
[1769841320651,0.19393805,83767.0,83762.0,0.10914328]
[1769841321761,0.31488,83766.0,83763.0,0.0713098]
[1769841321953,0.23819086,83766.0,83763.0,0.0713098]
[1769841322264,0.23423374,83766.0,83763.0,0.0713098]
[1769841322756,0.23423374,83766.0,83763.0,0.0723098]
[1769841325557,0.23423374,83766.0,83763.0,0.001]
[1769841348384,0.07887114,83765.0,83763.0,0.001]
[1769841349479,0.23423374,83766.0,83763.0,0.001]
[1769841349986,0.23423374,83766.0,83757.0,0.011958]
[1769841350188,0.23423374,83766.0,83763.0,0.001]
[1769841350388,0.07887114,83765.0,83763.0,0.001]
[1769841350687,0.23423374,83766.0,83763.0,0.001]
[1769841351577,0.23423374,83766.0,83757.0,0.011958]
[1769841351773,0.23423374,83766.0,83763.0,0.001]
[1769841352486,0.31310488,83766.0,83763.0,0.001]
[1769841353789,0.31310488,83766.0,83757.0,0.001]
[1769841355085,0.23423374,83766.0,83751.0,0.08491603]
[1769841355385,0.23423374,83766.0,83763.0,0.001]
[1769841357388,0.23423374,83766.0,83755.0,0.19139378]
[1769841357586,0.23423374,83766.0,83757.0,0.001]
[1769841358184,0.23423374,83766.0,83755.0,0.19139378]
[1769841358388,0.23423374,83766.0,83763.0,0.001]
[1769841359092,0.23423374,83766.0,83755.0,0.19139378]
[1769841359289,0.07887114,83765.0,83757.0,0.001]